[Event "Titled Tuesday Blitz June 28 Late 2022"]
[White "Gubajdullin, Alexei"]
[Black "Pakleza, Zbigniew"]
[WhiteFideId "4141202"]
[BlackFideId "1119290"]
[WhiteElo "2280"]
[BlackElo "2467"]
[Result "1-0"]
[Round "02"]
[TimeControl "180+1"]
[Date "2022.06.28"]
[WhiteClock "0:01:21"]
[BlackClock "0:00:06"]

1. c4 {[%clk 0:03:00]}  c6 {[%clk 0:02:56]} 2. Nf3 {[%clk 0:02:59]}  d5 {[%clk 0:02:57]} 3. e3 {[%clk 0:02:59]}  Nf6 {[%clk 0:02:57]} 4. Nc3 {[%clk 0:02:59]}  Bg4 {[%clk 0:02:54]} 5. Qb3 {[%clk 0:02:55]}  Qb6 {[%clk 0:02:51]} 6. Ne5 {[%clk 0:02:47]}  Be6 {[%clk 0:02:49]} 7. d4 {[%clk 0:02:47]}  Nbd7 {[%clk 0:02:43]} 8. Nxd7 {[%clk 0:02:46]}  Bxd7 {[%clk 0:02:36]} 9. cxd5 {[%clk 0:02:44]}  Qxb3 {[%clk 0:02:33]} 10. axb3 {[%clk 0:02:43]}  Nxd5 {[%clk 0:02:31]} 11. Nxd5 {[%clk 0:02:39]}  cxd5 {[%clk 0:02:27]} 12. Bd2 {[%clk 0:02:36]}  e6 {[%clk 0:02:18]} 13. b4 {[%clk 0:02:35]}  Bd6 {[%clk 0:02:17]} 14. Bc3 {[%clk 0:02:23]}  Ke7 {[%clk 0:02:13]} 15. b5 {[%clk 0:02:23]}  f6 {[%clk 0:02:09]} 16. Be2 {[%clk 0:02:23]}  e5 {[%clk 0:01:54]} 17. O-O {[%clk 0:02:20]}  exd4 {[%clk 0:01:06]} 18. Bxd4 {[%clk 0:02:19]}  Be5 {[%clk 0:01:01]} 19. Rfd1 {[%clk 0:02:16]}  Be6 {[%clk 0:00:52]} 20. Bf3 {[%clk 0:02:01]}  Rhd8 {[%clk 0:00:47]} 21. Rd2 {[%clk 0:01:59]}  a6 {[%clk 0:00:37]} 22. bxa6 {[%clk 0:01:47]}  Rxa6 {[%clk 0:00:36]} 23. Rad1 {[%clk 0:01:43]}  Bxd4 {[%clk 0:00:30]} 24. Rxd4 {[%clk 0:01:42]}  Rb6 {[%clk 0:00:29]} 25. R1d2 {[%clk 0:01:41]}  Rd7 {[%clk 0:00:25]} 26. h4 {[%clk 0:01:41]}  h6 {[%clk 0:00:23]} 27. h5 {[%clk 0:01:40]}  Rb3 {[%clk 0:00:21]} 28. Kh2 {[%clk 0:01:40]}  Rb5 {[%clk 0:00:19]} 29. Kg3 {[%clk 0:01:39]}  Rb6 {[%clk 0:00:15]} 30. Kf4 {[%clk 0:01:39]}  Rdd6 {[%clk 0:00:15]} 31. g4 {[%clk 0:01:38]}  Rd7 {[%clk 0:00:15]} 32. b4 {[%clk 0:01:36]}  Rdd6 {[%clk 0:00:16]} 33. Rc2 {[%clk 0:01:36]}  Rd7 {[%clk 0:00:16]} 34. Rc5 {[%clk 0:01:36]}  Bf7 {[%clk 0:00:15]} 35. Bd1 {[%clk 0:01:30]}  Be6 {[%clk 0:00:14]} 36. Bb3 {[%clk 0:01:29]}  Rd8 {[%clk 0:00:11]} 37. e4 {[%clk 0:01:28]}  dxe4 {[%clk 0:00:05]} 38. Rxd8 {[%clk 0:01:26]}  Bxb3 {[%clk 0:00:06]} 39. Rd4 {[%clk 0:01:24]}  Be6 {[%clk 0:00:05]} 40. Rxe4 {[%clk 0:01:23]}  Kd6 {[%clk 0:00:06]} 41. Rd4+ {[%clk 0:01:22]}  Ke7 {[%clk 0:00:06]} 42. Rc7+ {[%clk 0:01:22]}  Kf8 {[%clk 0:00:06]} 43. Rd8# {[%clk 0:01:21]} 1-0


[Site "https://www.chess.com"]

[Event "Titled Tuesday Blitz June 28 Late 2022"]
[White "Hamitevici, Vladimir"]
[Black "Flynn, Jacob"]
[WhiteFideId "13902393"]
[BlackFideId "2509393"]
[WhiteElo "2359"]
[BlackElo "1896"]
[Result "1-0"]
[Round "02"]
[TimeControl "180+1"]
[Date "2022.06.29"]
[WhiteClock "0:00:21"]
[BlackClock "0:00:02"]

1. a3 {[%clk 0:03:00]}  g6 {[%clk 0:02:55]} 2. e4 {[%clk 0:02:54]}  c5 {[%clk 0:02:52]} 3. Bc4 {[%clk 0:02:53]}  Bg7 {[%clk 0:02:51]} 4. d3 {[%clk 0:02:52]}  Nc6 {[%clk 0:02:49]} 5. Nc3 {[%clk 0:02:51]}  e6 {[%clk 0:02:49]} 6. Be3 {[%clk 0:02:46]}  Nd4 {[%clk 0:02:45]} 7. Rb1 {[%clk 0:02:35]}  Ne7 {[%clk 0:02:33]} 8. b4 {[%clk 0:02:35]}  cxb4 {[%clk 0:02:32]} 9. axb4 {[%clk 0:02:36]}  O-O {[%clk 0:02:26]} 10. Ba2 {[%clk 0:01:54]}  Ndf5 {[%clk 0:02:08]} 11. Bd2 {[%clk 0:01:52]}  Nd4 {[%clk 0:02:06]} 12. h4 {[%clk 0:01:52]}  h6 {[%clk 0:02:02]} 13. h5 {[%clk 0:01:48]}  g5 {[%clk 0:02:02]} 14. f4 {[%clk 0:01:48]}  gxf4 {[%clk 0:01:30]} 15. Bxf4 {[%clk 0:01:49]}  Nec6 {[%clk 0:01:20]} 16. Nce2 {[%clk 0:01:33]}  f5 {[%clk 0:01:10]} 17. e5 {[%clk 0:01:22]}  b6 {[%clk 0:00:57]} 18. Nxd4 {[%clk 0:01:17]}  Nxd4 {[%clk 0:00:57]} 19. c3 {[%clk 0:01:17]}  Nb5 {[%clk 0:00:46]} 20. Ne2 {[%clk 0:01:08]}  Bb7 {[%clk 0:00:46]} 21. Qd2 {[%clk 0:01:08]}  Kh7 {[%clk 0:00:41]} 22. c4 {[%clk 0:00:55]}  Nc7 {[%clk 0:00:39]} 23. d4 {[%clk 0:00:45]}  Be4 {[%clk 0:00:37]} 24. Rb3 {[%clk 0:00:44]}  b5 {[%clk 0:00:33]} 25. Rg3 {[%clk 0:00:39]}  Qe7 {[%clk 0:00:28]} 26. Rg6 {[%clk 0:00:34]}  Rf7 {[%clk 0:00:15]} 27. Bxh6 {[%clk 0:00:33]}  bxc4 {[%clk 0:00:11]} 28. Rh3 {[%clk 0:00:29]}  f4 {[%clk 0:00:07]} 29. Bxg7 {[%clk 0:00:25]}  Rxg7 {[%clk 0:00:05]} 30. Qxf4 {[%clk 0:00:21]}  Bxg6 {[%clk 0:00:01]} 31. hxg6+ {[%clk 0:00:22]}  Kg8 {[%clk 0:00:02]} 32. Qh6 {[%clk 0:00:21]} 1-0


[Site "https://www.chess.com"]

[Event "Titled Tuesday Blitz June 28 Late 2022"]
[White "Hu, Merric"]
[Black "Ladopoulos, Dimitrios"]
[WhiteFideId "30906660"]
[BlackFideId "4239580"]
[WhiteElo "2463"]
[BlackElo "2723"]
[Result "1-0"]
[Round "02"]
[TimeControl "180+1"]
[Date "2022.06.29"]
[WhiteClock "0:00:01"]
[BlackClock "0:00:05"]

1. e4 {[%clk 0:03:00]}  c5 {[%clk 0:02:47]} 2. Nf3 {[%clk 0:03:00]}  e6 {[%clk 0:02:48]} 3. d4 {[%clk 0:02:59]}  cxd4 {[%clk 0:02:49]} 4. Nxd4 {[%clk 0:02:59]}  Nf6 {[%clk 0:02:49]} 5. Nc3 {[%clk 0:02:59]}  d6 {[%clk 0:02:47]} 6. g4 {[%clk 0:02:55]}  h6 {[%clk 0:02:46]} 7. Be3 {[%clk 0:02:54]}  g5 {[%clk 0:02:41]} 8. f3 {[%clk 0:02:54]}  a6 {[%clk 0:02:41]} 9. Qd2 {[%clk 0:02:51]}  Nbd7 {[%clk 0:02:39]} 10. a4 {[%clk 0:02:49]}  Ne5 {[%clk 0:02:37]} 11. Be2 {[%clk 0:02:49]}  Bd7 {[%clk 0:02:35]} 12. h4 {[%clk 0:02:48]}  gxh4 {[%clk 0:02:18]} 13. Bf2 {[%clk 0:02:37]}  Ng6 {[%clk 0:02:15]} 14. a5 {[%clk 0:02:29]}  Rc8 {[%clk 0:02:10]} 15. Nb3 {[%clk 0:02:28]}  Bc6 {[%clk 0:01:56]} 16. O-O-O {[%clk 0:02:26]}  d5 {[%clk 0:01:53]} 17. exd5 {[%clk 0:02:22]}  Nxd5 {[%clk 0:01:54]} 18. Qd4 {[%clk 0:02:16]}  Rg8 {[%clk 0:01:49]} 19. Ne4 {[%clk 0:02:11]}  Bg7 {[%clk 0:01:48]} 20. Qb6 {[%clk 0:02:09]}  Nxb6 {[%clk 0:01:40]} 21. Rxd8+ {[%clk 0:02:09]}  Rxd8 {[%clk 0:01:41]} 22. Bxb6 {[%clk 0:02:06]}  Bxe4 {[%clk 0:01:31]} 23. Bxd8 {[%clk 0:02:04]}  Kxd8 {[%clk 0:01:32]} 24. fxe4 {[%clk 0:02:01]}  Be5 {[%clk 0:01:30]} 25. Bf3 {[%clk 0:01:59]}  Kc7 {[%clk 0:01:29]} 26. Nc5 {[%clk 0:01:59]}  Bg3 {[%clk 0:01:27]} 27. Rd1 {[%clk 0:01:54]}  Ne5 {[%clk 0:01:26]} 28. Be2 {[%clk 0:01:47]}  Bf2 {[%clk 0:01:00]} 29. Nd3 {[%clk 0:01:42]}  Be3+ {[%clk 0:01:00]} 30. Kb1 {[%clk 0:01:42]}  Nxg4 {[%clk 0:00:56]} 31. Rh1 {[%clk 0:01:43]}  Nf2 {[%clk 0:00:46]} 32. Rxh4 {[%clk 0:01:42]}  Nxd3 {[%clk 0:00:43]} 33. Bxd3 {[%clk 0:01:40]}  Kd6 {[%clk 0:00:42]} 34. Rh3 {[%clk 0:01:37]}  Bf4 {[%clk 0:00:42]} 35. c3 {[%clk 0:01:27]}  Ke5 {[%clk 0:00:29]} 36. Rh5+ {[%clk 0:01:19]}  Rg5 {[%clk 0:00:27]} 37. Rh3 {[%clk 0:01:08]}  Rg3 {[%clk 0:00:24]} 38. Rxg3 {[%clk 0:01:06]}  Bxg3 {[%clk 0:00:25]} 39. Kc2 {[%clk 0:01:06]}  Kf4 {[%clk 0:00:24]} 40. Kd2 {[%clk 0:01:06]}  Kf3 {[%clk 0:00:22]} 41. b4 {[%clk 0:01:00]}  Kf2 {[%clk 0:00:21]} 42. Be2 {[%clk 0:00:58]}  Bf4+ {[%clk 0:00:20]} 43. Kd3 {[%clk 0:00:57]}  Be5 {[%clk 0:00:20]} 44. Bh5 {[%clk 0:00:56]}  f5 {[%clk 0:00:19]} 45. Bf7 {[%clk 0:00:39]}  f4 {[%clk 0:00:08]} 46. Bxe6 {[%clk 0:00:39]}  f3 {[%clk 0:00:08]} 47. c4 {[%clk 0:00:23]}  Kg2 {[%clk 0:00:07]} 48. Bg4 {[%clk 0:00:05]}  f2 {[%clk 0:00:06]} 49. Be2 {[%clk 0:00:06]}  h5 {[%clk 0:00:04]} 50. b5 {[%clk 0:00:05]}  h4 {[%clk 0:00:04]} 51. c5 {[%clk 0:00:01]}  axb5 {[%clk 0:00:04]} 52. c6 {[%clk 0:00:01]}  bxc6 {[%clk 0:00:05]} 53. a6 {[%clk 0:00:01]} 1-0


[Site "https://www.chess.com"]

[Event "Titled Tuesday Blitz June 28 Late 2022"]
[White "Hua, Lefong"]
[Black "Tari, Aryan"]
[WhiteFideId "2602253"]
[BlackFideId "1510045"]
[WhiteElo "2610"]
[BlackElo "2567"]
[Result "0-1"]
[Round "02"]
[TimeControl "180+1"]
[Date "2022.06.28"]
[WhiteClock "0:01:31"]
[BlackClock "0:02:01"]

1. d4 {[%clk 0:03:00]}  d5 {[%clk 0:02:56]} 2. c4 {[%clk 0:03:01]}  e6 {[%clk 0:02:57]} 3. Nc3 {[%clk 0:03:01]}  c5 {[%clk 0:02:58]} 4. cxd5 {[%clk 0:03:00]}  cxd4 {[%clk 0:02:58]} 5. Qa4+ {[%clk 0:03:00]}  Bd7 {[%clk 0:02:58]} 6. Qxd4 {[%clk 0:03:00]}  exd5 {[%clk 0:02:59]} 7. Qxd5 {[%clk 0:03:01]}  Nf6 {[%clk 0:03:00]} 8. Qd1 {[%clk 0:03:01]}  Bc5 {[%clk 0:02:58]} 9. e3 {[%clk 0:03:00]}  O-O {[%clk 0:02:59]} 10. Nf3 {[%clk 0:02:58]}  Qe7 {[%clk 0:02:59]} 11. Be2 {[%clk 0:02:58]}  Nc6 {[%clk 0:03:00]} 12. O-O {[%clk 0:02:56]}  Ne5 {[%clk 0:03:00]} 13. Nd5 {[%clk 0:02:34]}  Nxd5 {[%clk 0:02:56]} 14. Qxd5 {[%clk 0:02:35]}  Nxf3+ {[%clk 0:02:56]} 15. Bxf3 {[%clk 0:02:34]}  Bc6 {[%clk 0:02:53]} 16. Qf5 {[%clk 0:02:32]}  g6 {[%clk 0:02:52]} 17. Qh3 {[%clk 0:02:31]}  Bd7 {[%clk 0:02:36]} 18. Qh6 {[%clk 0:02:23]}  Rad8 {[%clk 0:02:31]} 19. e4 {[%clk 0:02:21]}  Bb5 {[%clk 0:02:26]} 20. Rd1 {[%clk 0:02:05]}  Rxd1+ {[%clk 0:02:25]} 21. Bxd1 {[%clk 0:02:06]}  Qxe4 {[%clk 0:02:26]} 22. Bd2 {[%clk 0:01:56]}  Qd4 {[%clk 0:02:08]} 23. Be3 {[%clk 0:01:43]}  Qxb2 {[%clk 0:02:07]} 24. Rc1 {[%clk 0:01:30]}  Bxe3 {[%clk 0:02:01]} 25. Qxe3 {[%clk 0:01:31]}  Re8 {[%clk 0:02:01]} 0-1


[Site "https://www.chess.com"]

[Event "Titled Tuesday Blitz June 28 Late 2022"]
[White "Ibarra Jerez, Jose Carlos"]
[Black "Urbina Perez, Juan Antonio"]
[WhiteFideId "2226332"]
[BlackFideId "2217368"]
[WhiteElo "2628"]
[BlackElo "2192"]
[Result "1-0"]
[Round "02"]
[TimeControl "180+1"]
[Date "2022.06.29"]
[WhiteClock "0:02:05"]
[BlackClock "0:00:35"]

1. e4 {[%clk 0:03:00]}  e5 {[%clk 0:02:53]} 2. Nf3 {[%clk 0:03:00]}  Nf6 {[%clk 0:02:50]} 3. Nc3 {[%clk 0:02:57]}  Nc6 {[%clk 0:02:50]} 4. g3 {[%clk 0:02:56]}  Bc5 {[%clk 0:02:49]} 5. Bg2 {[%clk 0:02:55]}  d6 {[%clk 0:02:49]} 6. d3 {[%clk 0:02:54]}  h6 {[%clk 0:02:47]} 7. Na4 {[%clk 0:02:54]}  Bb6 {[%clk 0:02:46]} 8. O-O {[%clk 0:02:52]}  Bg4 {[%clk 0:02:44]} 9. h3 {[%clk 0:02:52]}  Be6 {[%clk 0:02:44]} 10. c3 {[%clk 0:02:50]}  O-O {[%clk 0:02:39]} 11. d4 {[%clk 0:02:50]}  exd4 {[%clk 0:02:37]} 12. cxd4 {[%clk 0:02:50]}  d5 {[%clk 0:02:36]} 13. e5 {[%clk 0:02:51]}  Ne4 {[%clk 0:02:28]} 14. Be3 {[%clk 0:02:51]}  f6 {[%clk 0:02:25]} 15. exf6 {[%clk 0:02:46]}  Qxf6 {[%clk 0:02:26]} 16. Kh2 {[%clk 0:02:37]}  Rae8 {[%clk 0:02:22]} 17. Rc1 {[%clk 0:02:32]}  Re7 {[%clk 0:02:18]} 18. Nxb6 {[%clk 0:02:29]}  axb6 {[%clk 0:02:18]} 19. a3 {[%clk 0:02:28]}  Nd8 {[%clk 0:02:02]} 20. Ne5 {[%clk 0:02:25]}  Nf7 {[%clk 0:01:53]} 21. f4 {[%clk 0:02:21]}  c6 {[%clk 0:01:40]} 22. g4 {[%clk 0:02:16]}  Nxe5 {[%clk 0:01:34]} 23. dxe5 {[%clk 0:02:15]}  Qf7 {[%clk 0:01:24]} 24. f5 {[%clk 0:02:15]}  Bc8 {[%clk 0:01:24]} 25. e6 {[%clk 0:02:14]}  Qf6 {[%clk 0:01:15]} 26. Bd4 {[%clk 0:02:14]}  Qh4 {[%clk 0:01:13]} 27. Bxe4 {[%clk 0:02:13]}  dxe4 {[%clk 0:01:11]} 28. Bxb6 {[%clk 0:02:14]}  h5 {[%clk 0:01:01]} 29. Bc5 {[%clk 0:02:13]}  Bxe6 {[%clk 0:00:42]} 30. Bxe7 {[%clk 0:02:09]}  Qxe7 {[%clk 0:00:41]} 31. fxe6 {[%clk 0:02:08]}  Qxe6 {[%clk 0:00:38]} 32. Rxf8+ {[%clk 0:02:07]}  Kxf8 {[%clk 0:00:39]} 33. Qd8+ {[%clk 0:02:06]}  Kf7 {[%clk 0:00:37]} 34. Rf1+ {[%clk 0:02:07]}  Kg6 {[%clk 0:00:37]} 35. gxh5+ {[%clk 0:02:06]}  Kh6 {[%clk 0:00:35]} 36. Qh8+ {[%clk 0:02:05]} 1-0


[Site "https://www.chess.com"]

[Event "Titled Tuesday Blitz June 28 Late 2022"]
[White "Isajevsky, Anton"]
[Black "Rosen, Eric"]
[WhiteFideId "4142500"]
[BlackFideId "2032562"]
[WhiteElo "2510"]
[BlackElo "2362"]
[Result "0-1"]
[Round "02"]
[TimeControl "180+1"]
[Date "2022.06.28"]
[WhiteClock "0:00:06"]
[BlackClock "0:00:16"]

1. c4 {[%clk 0:03:00]}  e5 {[%clk 0:03:00]} 2. g3 {[%clk 0:03:00]}  Nf6 {[%clk 0:03:00]} 3. Bg2 {[%clk 0:03:00]}  Nc6 {[%clk 0:03:00]} 4. Nc3 {[%clk 0:03:00]}  Bc5 {[%clk 0:03:01]} 5. Nf3 {[%clk 0:02:59]}  d6 {[%clk 0:03:01]} 6. O-O {[%clk 0:02:59]}  O-O {[%clk 0:03:00]} 7. e3 {[%clk 0:02:59]}  a6 {[%clk 0:03:00]} 8. h3 {[%clk 0:02:58]}  Ba7 {[%clk 0:03:00]} 9. d3 {[%clk 0:02:56]}  h6 {[%clk 0:02:59]} 10. a3 {[%clk 0:02:56]}  Ne7 {[%clk 0:02:58]} 11. b4 {[%clk 0:02:55]}  Ng6 {[%clk 0:02:57]} 12. Bb2 {[%clk 0:02:46]}  Re8 {[%clk 0:02:56]} 13. Qc2 {[%clk 0:02:35]}  Bd7 {[%clk 0:02:55]} 14. Kh2 {[%clk 0:02:29]}  c6 {[%clk 0:02:55]} 15. Ne4 {[%clk 0:02:26]}  Be6 {[%clk 0:02:40]} 16. Rac1 {[%clk 0:02:19]}  Nh7 {[%clk 0:02:40]} 17. c5 {[%clk 0:02:14]}  dxc5 {[%clk 0:02:26]} 18. Nxc5 {[%clk 0:01:52]}  Bc8 {[%clk 0:02:23]} 19. d4 {[%clk 0:01:34]}  Bb8 {[%clk 0:02:01]} 20. Rfd1 {[%clk 0:01:21]}  Qe7 {[%clk 0:01:51]} 21. dxe5 {[%clk 0:01:00]}  Nxe5 {[%clk 0:01:48]} 22. Nd4 {[%clk 0:00:48]}  Nf8 {[%clk 0:01:31]} 23. f4 {[%clk 0:00:35]}  Neg6 {[%clk 0:01:22]} 24. e4 {[%clk 0:00:25]}  Nxf4 {[%clk 0:00:54]} 25. gxf4 {[%clk 0:00:26]}  Bxf4+ {[%clk 0:00:54]} 26. Kh1 {[%clk 0:00:27]}  Qg5 {[%clk 0:00:55]} 27. Nd3 {[%clk 0:00:20]}  Bxc1 {[%clk 0:00:40]} 28. Bxc1 {[%clk 0:00:21]}  Qh5 {[%clk 0:00:39]} 29. Nf4 {[%clk 0:00:20]}  Qe5 {[%clk 0:00:40]} 30. Nf5 {[%clk 0:00:17]}  Bxf5 {[%clk 0:00:32]} 31. exf5 {[%clk 0:00:18]}  Rad8 {[%clk 0:00:33]} 32. Rf1 {[%clk 0:00:16]}  Nh7 {[%clk 0:00:30]} 33. Bb2 {[%clk 0:00:12]}  Qe3 {[%clk 0:00:30]} 34. Nh5 {[%clk 0:00:08]}  f6 {[%clk 0:00:20]} 35. Nf4 {[%clk 0:00:06]}  Ng5 {[%clk 0:00:16]} 0-1


[Site "https://www.chess.com"]

[Event "Titled Tuesday Blitz June 28 Late 2022"]
[White "Janturin, Artur"]
[Black "Bachmann, Axel"]
[WhiteFideId "4130022"]
[BlackFideId "3700488"]
[WhiteElo "2388"]
[BlackElo "2587"]
[Result "1-0"]
[Round "02"]
[TimeControl "180+1"]
[Date "2022.06.29"]
[WhiteClock "0:00:10"]
[BlackClock "0:00:09"]

1. b3 {[%clk 0:03:00]}  Nf6 {[%clk 0:02:57]} 2. Bb2 {[%clk 0:03:00]}  g6 {[%clk 0:02:53]} 3. Bxf6 {[%clk 0:02:59]}  exf6 {[%clk 0:02:53]} 4. c4 {[%clk 0:03:00]}  Bg7 {[%clk 0:02:53]} 5. Nc3 {[%clk 0:02:59]}  O-O {[%clk 0:02:51]} 6. g3 {[%clk 0:02:59]}  f5 {[%clk 0:02:45]} 7. Bg2 {[%clk 0:02:59]}  Nc6 {[%clk 0:02:44]} 8. e3 {[%clk 0:02:59]}  b6 {[%clk 0:02:39]} 9. Nge2 {[%clk 0:02:59]}  Bb7 {[%clk 0:02:39]} 10. O-O {[%clk 0:02:58]}  Rb8 {[%clk 0:02:27]} 11. d4 {[%clk 0:02:56]}  Ne7 {[%clk 0:02:26]} 12. Nd5 {[%clk 0:02:33]}  Nxd5 {[%clk 0:02:21]} 13. cxd5 {[%clk 0:02:33]}  c5 {[%clk 0:02:08]} 14. dxc6 {[%clk 0:02:28]}  dxc6 {[%clk 0:02:05]} 15. Rc1 {[%clk 0:02:28]}  Qd7 {[%clk 0:02:00]} 16. b4 {[%clk 0:02:06]}  Rfc8 {[%clk 0:01:55]} 17. Qa4 {[%clk 0:01:58]}  Ba8 {[%clk 0:01:52]} 18. Rc2 {[%clk 0:01:39]}  Rc7 {[%clk 0:01:34]} 19. Rfc1 {[%clk 0:01:37]}  Rbc8 {[%clk 0:01:34]} 20. a3 {[%clk 0:01:13]}  Qd6 {[%clk 0:01:33]} 21. h4 {[%clk 0:01:07]}  h5 {[%clk 0:01:31]} 22. Nf4 {[%clk 0:01:07]}  Bf8 {[%clk 0:01:26]} 23. Nd3 {[%clk 0:01:03]}  Kg7 {[%clk 0:01:12]} 24. Ne5 {[%clk 0:00:51]}  Be7 {[%clk 0:01:05]} 25. Nxc6 {[%clk 0:00:38]}  Bxc6 {[%clk 0:01:05]} 26. Rxc6 {[%clk 0:00:38]}  Rxc6 {[%clk 0:01:06]} 27. Rxc6 {[%clk 0:00:37]}  Rxc6 {[%clk 0:01:06]} 28. Bxc6 {[%clk 0:00:31]}  a5 {[%clk 0:00:58]} 29. bxa5 {[%clk 0:00:14]}  bxa5 {[%clk 0:00:59]} 30. Bf3 {[%clk 0:00:12]}  Qxa3 {[%clk 0:00:57]} 31. Qxa3 {[%clk 0:00:11]}  Bxa3 {[%clk 0:00:56]} 32. Kf1 {[%clk 0:00:11]}  Kf6 {[%clk 0:00:55]} 33. Bd5 {[%clk 0:00:11]}  Ke7 {[%clk 0:00:54]} 34. Bb3 {[%clk 0:00:11]}  Bb4 {[%clk 0:00:45]} 35. Ke2 {[%clk 0:00:11]}  f6 {[%clk 0:00:09]} 36. Ba4 {[%clk 0:00:10]} 1-0


[Site "https://www.chess.com"]

[Event "Titled Tuesday Blitz June 28 Late 2022"]
[White "Jaskolka, Tomasz"]
[Black "Marin Ramirez, Gerardo"]
[WhiteFideId "1170791"]
[BlackFideId "3901068"]
[WhiteElo "2073"]
[BlackElo "1920"]
[Result "1-0"]
[Round "02"]
[TimeControl "180+1"]
[Date "2022.06.29"]
[WhiteClock "0:00:20"]
[BlackClock "0:00:09"]

1. d4 {[%clk 0:03:00]}  d5 {[%clk 0:02:57]} 2. Bf4 {[%clk 0:03:00]}  c6 {[%clk 0:02:57]} 3. e3 {[%clk 0:03:00]}  Qb6 {[%clk 0:02:56]} 4. b3 {[%clk 0:03:00]}  Nf6 {[%clk 0:02:55]} 5. c3 {[%clk 0:03:00]}  Bf5 {[%clk 0:02:52]} 6. Nf3 {[%clk 0:02:59]}  e6 {[%clk 0:02:51]} 7. Nh4 {[%clk 0:02:57]}  Bg4 {[%clk 0:02:49]} 8. f3 {[%clk 0:02:55]}  Bh5 {[%clk 0:02:46]} 9. g4 {[%clk 0:02:55]}  Bg6 {[%clk 0:02:46]} 10. Nxg6 {[%clk 0:02:55]}  hxg6 {[%clk 0:02:45]} 11. Bd3 {[%clk 0:02:55]}  c5 {[%clk 0:02:43]} 12. Nd2 {[%clk 0:02:54]}  Nc6 {[%clk 0:02:42]} 13. Qe2 {[%clk 0:02:51]}  Qa5 {[%clk 0:02:38]} 14. Rc1 {[%clk 0:02:33]}  cxd4 {[%clk 0:02:36]} 15. exd4 {[%clk 0:02:32]}  Qxa2 {[%clk 0:02:30]} 16. Kf2 {[%clk 0:02:30]}  Qa5 {[%clk 0:02:24]} 17. Rhe1 {[%clk 0:02:11]}  Be7 {[%clk 0:02:16]} 18. b4 {[%clk 0:02:03]}  Qb6 {[%clk 0:02:10]} 19. Nb3 {[%clk 0:02:01]}  O-O {[%clk 0:01:50]} 20. h4 {[%clk 0:01:57]}  Nh7 {[%clk 0:01:43]} 21. Rh1 {[%clk 0:01:45]}  Rae8 {[%clk 0:01:34]} 22. Qe3 {[%clk 0:01:09]}  Qd8 {[%clk 0:01:31]} 23. h5 {[%clk 0:01:01]}  g5 {[%clk 0:01:29]} 24. Bg3 {[%clk 0:01:00]}  Bf6 {[%clk 0:01:25]} 25. Nc5 {[%clk 0:00:55]}  e5 {[%clk 0:01:11]} 26. Bb1 {[%clk 0:00:42]}  Qc8 {[%clk 0:00:47]} 27. Qd3 {[%clk 0:00:29]}  e4 {[%clk 0:00:43]} 28. fxe4 {[%clk 0:00:29]}  dxe4 {[%clk 0:00:40]} 29. Nxe4 {[%clk 0:00:28]}  Qxg4 {[%clk 0:00:37]} 30. Nd6 {[%clk 0:00:25]}  Bxd4+ {[%clk 0:00:10]} 31. cxd4 {[%clk 0:00:25]}  Qxd4+ {[%clk 0:00:11]} 32. Qxd4 {[%clk 0:00:25]}  Nxd4 {[%clk 0:00:11]} 33. Bxh7+ {[%clk 0:00:19]}  Kxh7 {[%clk 0:00:10]} 34. Nxe8 {[%clk 0:00:20]}  Rxe8 {[%clk 0:00:09]} 35. Rhe1 {[%clk 0:00:20]} 1-0


[Site "https://www.chess.com"]

[Event "Titled Tuesday Blitz June 28 Late 2022"]
[White "Jorajuria Mendoza, Algol"]
[Black "Isanzhulov, Arystan"]
[WhiteFideId "5128897"]
[BlackFideId "13711644"]
[WhiteElo "1600"]
[BlackElo "2293"]
[Result "0-1"]
[Round "02"]
[TimeControl "180+1"]
[Date "2022.06.29"]
[WhiteClock "0:00:02"]
[BlackClock "0:00:32"]

1. e4 {[%clk 0:03:00]}  c6 {[%clk 0:02:54]} 2. d4 {[%clk 0:02:58]}  d5 {[%clk 0:02:54]} 3. e5 {[%clk 0:02:58]}  Bf5 {[%clk 0:02:15]} 4. h4 {[%clk 0:02:58]}  Qc8 {[%clk 0:02:15]} 5. c4 {[%clk 0:02:42]}  dxc4 {[%clk 0:02:02]} 6. Bxc4 {[%clk 0:02:37]}  e6 {[%clk 0:01:58]} 7. g4 {[%clk 0:01:30]}  Be4 {[%clk 0:01:57]} 8. f3 {[%clk 0:01:20]}  Bd5 {[%clk 0:01:56]} 9. Bxd5 {[%clk 0:01:19]}  cxd5 {[%clk 0:01:55]} 10. Nc3 {[%clk 0:01:13]}  Nc6 {[%clk 0:01:53]} 11. Be3 {[%clk 0:01:12]}  h5 {[%clk 0:01:53]} 12. Rc1 {[%clk 0:01:05]}  Nge7 {[%clk 0:01:50]} 13. Nge2 {[%clk 0:00:47]}  Ng6 {[%clk 0:01:50]} 14. Ng3 {[%clk 0:00:40]}  Qd8 {[%clk 0:01:27]} 15. Nxh5 {[%clk 0:00:31]}  Nxh4 {[%clk 0:01:24]} 16. Kf2 {[%clk 0:00:21]}  Ng6 {[%clk 0:01:22]} 17. Qd2 {[%clk 0:00:14]}  a6 {[%clk 0:01:07]} 18. Bg5 {[%clk 0:00:13]}  Qb6 {[%clk 0:01:05]} 19. Be3 {[%clk 0:00:12]}  O-O-O {[%clk 0:01:01]} 20. Na4 {[%clk 0:00:10]}  Qb4 {[%clk 0:01:00]} 21. Qxb4 {[%clk 0:00:07]}  Bxb4 {[%clk 0:01:00]} 22. a3 {[%clk 0:00:08]}  Bf8 {[%clk 0:01:00]} 23. b4 {[%clk 0:00:07]}  Kb8 {[%clk 0:00:59]} 24. Nc5 {[%clk 0:00:07]}  Na7 {[%clk 0:00:50]} 25. f4 {[%clk 0:00:07]}  Ne7 {[%clk 0:00:49]} 26. Ng3 {[%clk 0:00:06]}  Nec6 {[%clk 0:00:49]} 27. Rxh8 {[%clk 0:00:05]}  Nb5 {[%clk 0:00:49]} 28. f5 {[%clk 0:00:04]}  Ncxd4 {[%clk 0:00:46]} 29. Bxd4 {[%clk 0:00:05]}  Nxd4 {[%clk 0:00:47]} 30. fxe6 {[%clk 0:00:05]}  fxe6 {[%clk 0:00:46]} 31. Ke3 {[%clk 0:00:04]}  Nc2+ {[%clk 0:00:43]} 32. Rxc2 {[%clk 0:00:04]}  Bxc5+ {[%clk 0:00:42]} 33. Rxc5 {[%clk 0:00:04]}  Rxh8 {[%clk 0:00:43]} 34. Nh5 {[%clk 0:00:05]}  Rh7 {[%clk 0:00:41]} 35. Kf4 {[%clk 0:00:04]}  g6 {[%clk 0:00:35]} 36. Nf6 {[%clk 0:00:03]}  Rh3 {[%clk 0:00:36]} 37. Kg5 {[%clk 0:00:03]}  Re3 {[%clk 0:00:35]} 38. Kxg6 {[%clk 0:00:03]}  d4 {[%clk 0:00:35]} 39. Rc4 {[%clk 0:00:02]}  Rd3 {[%clk 0:00:32]} 0-1


[Site "https://www.chess.com"]